Cogmind - Beta 13 @@@ ROGUE MODE // 2024.04.03 @ 09:33:24 Player: Johge Result: Destroyed by G-34 Mercenary with Small Laser Performance ------------- Evolutions (1) 500 Regions Visited (2) 400 Robots Destroyed (22) 110 Value Destroyed (471) 471 Prototype IDs (5) 100 Alien Tech Used (0) 0 Bonus (0) 0 TOTAL SCORE: 1581 Bonus ------- None Cogmind --------- Core Integrity 0/400 Matter 300/300 Energy 100/100 System Corruption 0% Temperature Cool (6) Movement Core (1350) Ox26 Location -9/Materials Parts ------- > --- POWER (1) -------- (None) > --- PROPULSION (4) --- (None) > --- UTILITY (2) ------ Huge Storage Unit > --- WEAPON (2) ------- (None) > --- INVENTORY (25) --- Light Deuterium Engine Light Deuterium Engine Light Deuterium Engine Light Deuterium Engine Visual Processing Unit Targeting Computer Light Armor Plating Peak State ------------ > --- POWER ------------ Heavy Ion Engine > --- PROPULSION ------- Aluminum Leg Aluminum Leg > --- UTILITY ---------- Huge Storage Unit Large Battery > --- WEAPON ----------- EM Pulse Cannon Advanced Beam Cannon > --- INVENTORY -------- Light Deuterium Engine Light Deuterium Engine Light Deuterium Engine Light Deuterium Engine Visual Processing Unit Targeting Computer Light Armor Plating Particle Cannon Particle Cannon [Rating: 15] Favorites ----------- Power Ion Engine Engine Ion Engine Propulsion Aluminum Leg Leg Aluminum Leg Utility Huge Storage Unit Storage Huge Storage Unit Weapon Medium Laser Energy Gun Medium Laser Energy Cannon EM Pulse Cannon Build | -11 -10 -9 ------- Run | Yrd Mat Mat Slots Evolved 2 | . . 2 Power . | . . . Propulsion 2 | . . 2 Utility . | . . . Weapon . | . . . Parts Attached 17 | 6 3 8 Power 3 | 1 . 2 Engine 3 | 1 . 2 Core . | . . . Reactor . | . . . Propulsion 3 | 2 . 1 Treads . | . . . Leg 3 | 2 . 1 Wheel . | . . . Hover . | . . . Flight . | . . . Utility 4 | 1 3 . Device . | . . . Storage 4 | 1 3 . Processor . | . . . Hackware . | . . . Protection . | . . . Artifact . | . . . Weapon 7 | 2 . 5 Energy Gun 2 | 2 . . Energy Cannon 5 | . . 5 Ballistic Gun . | . . . Ballistic Cannon . | . . . Launcher . | . . . Special Weapon . | . . . Impact Weapon . | . . . Slashing Weapon . | . . . Piercing Weapon . | . . . Special Melee Weapon . | . . . Unidentified Prototypes 2 | . . 2 Parts Lost 10 | . . 10 Power 1 | . . 1 Propulsion 3 | . . 3 Utility 1 | . . 1 Weapon 5 | . . 5 Highest Loss Streak 6 | . . 6 To Critical Strikes . | . . . Average Slot Usage (%) 81 | . 98 70 Engine 11 | . 14 10 Leg 22 | . 28 18 Storage 23 | . 26 21 Energy Gun 13 | . 28 3 Energy Cannon 9 | . . 15 Naked Turns . | . . . Heaviest Build 103 | 14 92 103 Greatest Support 20 | 20 20 20 Greatest Overweight (x) 32 | . 4 32 Average Overweight (x) 3 | . 2 5 Largest Inventory Capacity 25 | 8 25 25 Average Capacity 23 | 6 22 25 Most Carried 9 | 5 4 9 Average Carried 5 | 1 2 7 Final Capacity 25 | 8 25 25 Final Carried 7 | 1 3 7 Class Distribution -------------------- 100% | Mutant Dominant Class ---------------- Mutant | -10/Materials Mutant | -9/Materials Resources | -11 -10 -9 ----------- Run | Yrd Mat Mat Matter Collected 357 | 198 82 77 Remotely . | . . . Salvage Created 778 | . 103 675 Parts 53 | . 13 40 Haulers Intercepted 2 | . 1 1 Recyclers Shooed 2 | . 1 1 Parts Field Recycled . | . . . Retrieved Matter . | . . . Parts Self-Destructed . | . . . Prevented . | . . . Kills | -11 -10 -9 ------- Run | Yrd Mat Mat Combat Hostiles Destroyed 14 | . 3 11 Guns 3 | . 3 . Cannons 10 | . . 10 AOE 1 | . . 1 Classes Destroyed 9 | . 3 6 Worker 2 | . . 2 Hauler 2 | . 1 1 Recycler 1 | . . 1 Operator 1 | . . 1 Watcher 2 | . 1 1 Swarmer 6 | . 3 3 Grunt 4 | . . 4 Duelist 1 | . . 1 Sentry 3 | . . 3 Best Kill Streak 9 | . 5 9 Combat Bots Only 6 | . 3 6 Max Kills in Single Turn 2 | . 2 2 Gunslinging . | . . . Exploded 1 | . . 1 Melee . | . . . Uniques/NPCs Destroyed . | . . . Combat | -11 -10 -9 -------- Run | Yrd Mat Mat Hostile Shots Fired 155 | . 25 130 Missed 43 | . 15 28 Damage Taken 1469 | . 81 1388 Core 415 | . 10 405 Absorbed by Shields . | . . . Core Remaining (%) 98 | 100 96 . Volleys Fired 50 | . 14 36 Largest 2 | . 2 2 Hottest 136 | . 100 136 Shots Fired 92 | . 28 64 Gun 32 | . 28 4 Cannon 60 | . . 60 Launcher . | . . . Special . | . . . Kinetic . | . . . Thermal 71 | . 28 43 Explosive . | . . . Electromagnetic 21 | . . 21 Robot Hit Streak 13 | . 2 13 Robot Miss Streak 4 | . 4 3 Penetration Max . | . . . Secondary Targets . | . . . Shots Hit Robots 49 | . 11 38 Core Hits 27 | . 6 21 Critical Kills . | . . . Critical Parts Destroyed . | . . . Critical Strikes 4 | . 3 1 Burn 3 | . 3 . Corrupt 1 | . . 1 Melee Attacks . | . . . Impact . | . . . Slashing . | . . . Piercing . | . . . Sneak Attacks . | . . . Combat Hostiles . | . . . Follow-up Attacks . | . . . Damage Inflicted 1328 | . 190 1138 Guns 226 | . 188 38 Cannons 893 | . . 893 Explosions 183 | . . 183 Melee . | . . . Ramming 26 | . 2 24 Kinetic . | . . . Thermal 843 | . 188 655 Explosive 98 | . . 98 Electromagnetic 361 | . . 361 Impact . | . . . Slashing . | . . . Piercing . | . . . Highest Corruption . | . . . Average Corruption . | . . . Corruption Purged . | . . . Corruption Blocked . | . . . Overload Shots . | . . . Overflow Damage 153 | . . 153 Projectiles 17 | . . 17 Explosions 136 | . . 136 Melee . | . . . Knockbacks . | . . . Impact . | . . . Kinetic . | . . . Secondary . | . . . Self-Inflicted Damage 177 | . . 177 Shots 3 | . . 3 Rammed 2 | . . 2 Targets Rammed 9 | . 1 8 Kicked 7 | . 1 6 Crushed . | . . . Highest Temperature 536 | . 156 536 Average Temperature 133 | . 57 160 Received Heat Transfer 555 | . . 555 Effects 7 | . . 7 Shutdowns 2 | . . 2 Interference 3 | . . 3 Damage (minor) 1 | . . 1 Damage (major) 1 | . . 1 Siege Activations . | . . . Robots Corrupted . | . . . Combat Hostiles . | . . . Parts Fried 4 | . . 4 Impact Corruptions . | . . . Robots Melted . | . . . Combat Hostiles . | . . . Parts Melted . | . . . Heat Transferred 1950 | . 777 1173 Parts Sabotaged . | . . . Parts Stolen . | . . . Parts Stripped . | . . . Power Chain Reactions 2 | . . 2 Alert | -11 -10 -9 ------- Run | Yrd Mat Mat Peak Influence 203 | . 129 203 Initial . | . . . Average 48 | . 16 72 Maximum Alert Level 1 | . . 1 Low Security (%) 95 | 100 100 92 Level 1 4 | . . 7 Level 2 . | . . . Level 3 . | . . . Level 4 . | . . . Level 5 . | . . . High Security . | . . . Max Security . | . . . Squads Dispatched 2 | . 1 1 Investigation 1 | . . 1 Extermination . | . . . Reinforcement 1 | . 1 . Assault . | . . . Garrison . | . . . Intercept . | . . . Searches Triggered . | . . . Construction Impeded . | . . . Haulers Reinforced . | . . . Active Scanning Responses . | . . . Cargo Convoy Interrupts . | . . . Stealth | -11 -10 -9 --------- Run | Yrd Mat Mat Distress Signals 3 | . 1 2 Communications Jammed . | . . . Distress Signals . | . . . Times Spotted 21 | . 6 15 Peak Tracking Total 6 | . 3 6 Tactical Retreats 2 | . 1 1 Traps | -11 -10 -9 ------- Run | Yrd Mat Mat Traps Triggered . | . . . Indirectly . | . . . Trap Hack Attempts . | . . . Triggered . | . . . Disarmed . | . . . Reprogrammed . | . . . Reused . | . . . Traps Extracted . | . . . Installed . | . . . Triggered . | . . . Machines | -11 -10 -9 ---------- Run | Yrd Mat Mat Machines Disabled 2 | . . 2 Max in Single Turn 2 | . . 2 Machines Repaired . | . . . Machines Dismantled . | . . . Machines Sabotaged . | . . . Overloaded Fab Kills . | . . . Hacking | -11 -10 -9 --------- Run | Yrd Mat Mat Machines Accessed 2 | . . 2 Terminals 2 | . . 2 Fabricators . | . . . Repair Stations . | . . . Recycling Units . | . . . Scanalyzers . | . . . Garrison Access . | . . . Total Hacks 7 | . . 7 Successful 4 | . . 4 Failed 3 | . . 3 Catastrophic . | . . . Database Lockouts . | . . . Manual . | . . . Terminals 7 | . . 7 Fabricators . | . . . Repair Stations . | . . . Recycling Units . | . . . Scanalyzers . | . . . Garrison Access . | . . . Terminal Hacks 4 | . . 4 Record 1 | . . 1 Prototype ID Bank 1 | . . 1 Emergency Access Points 1 | . . 1 Alert Level 1 | . . 1 Fabricator Hacks . | . . . Repair Station Hacks . | . . . Recycling Unit Hacks . | . . . Scanalyzer . | . . . Garrison Access Hacks . | . . . Unauthorized Hacks . | . . . Terminals . | . . . Fabricators . | . . . Repair Stations . | . . . Recycling Units . | . . . Scanalyzers . | . . . Garrison Access . | . . . Data Cores Recovered . | . . . Used . | . . . Hacking Detections 2 | . . 2 Full Trace Events 2 | . . 2 Feedback Events . | . . . Feedback Blocked . | . . . Robot Schematics Acquired . | . . . Robots Built . | . . . Authchips . | . . . Time . | . . . Total Robot Build Rating . | . . . Part Schematics Acquired . | . . . Parts Built . | . . . Authchips . | . . . Time . | . . . Total Part Build Rating . | . . . Parts Repaired . | . . . Time . | . . . Parts Recycled . | . . . Recycled Matter . | . . . Retrieved Matter . | . . . Retrieved Components . | . . . Parts Scanalyzed . | . . . Part Schematics Acquired . | . . . Parts Damaged . | . . . Bothacking | -11 -10 -9 ------------ Run | Yrd Mat Mat Used RIF Installer . | . . . Robots Hacked . | . . . Non-combat . | . . . Combat . | . . . Robot Hacks Applied . | . . . Relay Couplers Released . | . . . Fabnet Peak Effective % . | . . . Robots Rewired . | . . . Allies Hacked . | . . . Hacks Repelled . | . . . Allies | -11 -10 -9 -------- Run | Yrd Mat Mat Total Allies . | . . . Largest Group . | . . . Highest-Rated Group . | . . . Highest-Rated Ally . | . . . Total Orders . | . . . Ally Attacks . | . . . Total Damage . | . . . Kills . | . . . Allies Corrupted . | . . . Allies Melted . | . . . Intel | -11 -10 -9 ------- Run | Yrd Mat Mat Robot Analysis Total . | . . . Derelict Logs Recovered . | . . . Drone Launches . | . . . Drone Recoveries . | . . . Exploration | -11 -10 -9 ------------- Run | Yrd Mat Mat Turns Passed 2287 | 48 898 1341 Spaces Moved 552 | 36 264 252 Core 17 | 13 . 4 Treads . | . . . Legs 535 | 23 264 248 Wheels . | . . . Hover . | . . . Flight . | . . . Fastest Speed 50 | 50 120 400 Average Speed 370 | 94 320 463 Slowest Speed 1650 | 120 400 1650 Overloaded Moves . | . . . Propulsion Burnouts . | . . . Robots Hopped . | . . . Cave-ins Triggered . | . . . Exploration Rate (%) 23 | 3 42 24 Regions Visited 2 Branch Regions . Pre-discovered Areas . | . . . Known Exits Taken . | . . . Unknown Exits Taken 2 | 1 1 . Scrap Searched . | . . . Spaces Dug . | . . . Terrain Destroyed 22 | . . 22 Melee . | . . . Projectile . | . . . AOE 22 | . . 22 Terrain Rammed . | . . . Walls Destroyed . | . . . Machines Disabled . | . . . Actions | -11 -10 -9 --------- Run | Yrd Mat Mat Total 662 | 50 288 324 Wait 2 | 2 . . Move 550 | 35 263 252 Hop . | . . . Pick Up 26 | 7 5 14 Fast Attach . | . . . Attach 11 | 6 1 4 Detach . | . . . Swap 6 | . 2 4 Drop 8 | . 2 6 Fire 50 | . 14 36 Melee . | . . . Ram 2 | . . 2 Kick 7 | . 1 6 Crush . | . . . Escape Stasis . | . . . Rewire . | . . . Trap . | . . . Miscellaneous . | . . . Route ------- -11/Scrapyard -10/Materials -9/Materials (discovered 1 exit: [*Mat]) History --------- Turn | Location | Event 8 | -11/Scrapyard | Discovered new exit (range 15) 49 | -11/Scrapyard | Entered Materials 316 | -10/Materials | Build established: Mutant 624 | -10/Materials | Discovered new exit (range 9) 947 | -10/Materials | Entered another Materials area 947 | -9/Materials | Evolved 2 slots: Propulsion x2 2063 | -9/Materials | Lost 3 parts (2n1w) 2184 | -9/Materials | Discovered new exit (range 12) 2247 | -9/Materials | Core integrity fell below 50% 2275 | -9/Materials | Core integrity fell below 20% 2288 | -9/Materials | Destroyed by G-34 Mercenary with Small Laser Last Messages --------------- G-34 Mercenary heat spikes uncontrollably. G-34 Mercenary overheating. G-34 Mercenary heat short circuits Ion Engine. G-34 Mercenary overheating. G-34 Mercenary heat damages Broken Heat Sink. G-34 Mercenary overheating. Slammed into G-34 Mercenary. G-34 Mercenary overheating. G-34 Mercenary heat short circuits Aluminum Leg. G-34 Mercenary overheating. G-34 Mercenary heat short circuits Aluminum Leg. M-13 Machinist repairs Broken Heat Sink. M-13 Machinist repairs Broken Aluminum Leg. Lrg. Battery destroyed. G-34 Mercenary heat damages Broken Aluminum Leg, Broken Aluminum Leg. M-13 Machinist repairs G-34 Mercenary. M-13 Machinist repairs Broken Aluminum Leg. G-34 Mercenary heat damages Sml. Laser. G-34 Mercenary heat damages Broken Aluminum Leg. Map ----- +----------------------------------------------------+ | ?# # ]]] """ #^""" ""T"" # | | ?# ## ]] """ # """ =%[ #? | | ?############ """ + """ !! #? | | ????????????# # #? | | ????????????# % % # #? | | ????????????# ####%########+################? | | ??????#######+### #%# ] #???????????? | | ??????# #=## "" #???????????? | | ??????# """"" #=#### """"" #???????????? | | ??????# """"" #%#??# """"" #???????????? | | ??????# [ """"" #%#??# """"" #???????????? | | ??????# #%##?# """ #???????????? | | ??????# =#=##?# #???????????? | | ??????# #*##?# #???????????? | | ??????#############/##############???????????? | | ?????????????????##%! #????????????????? | | ??????????????????#%=% #????????????????? | | ??????????????????#% #????????????????? | | ??????????????????# #????????????????? | | ??????????????????# #????????????????? | | ??????????????????# [ #????????????????? | | ??????????????????# #????????????????? | | ??????????????????# % #????????????????? | | ?????????##+###########/#############????????? | | ???????? k ^ u #????????? | | ???????? g @ r < #????????? | | ???????? k ^ m g #????????? | | ?????????##+###########%#############????????? | | ??????????????????????#%#????????????????????? | | ??????????????????????# #????????????????????? | | ??????????????????????# #????????????????????? | | ?????????????????????? ????????????????????? | | ??????????????????????#+#????????????????????? | | ?????????????????????? ????????????????????? | | ?????????????????????? "????????????????????? | | ?????????????????????? "????????????????????? | | ?????????????????????? "????????????????????? | | ?????????????????????? ????????????????????? | | ?????????????????????? !????????????????????? | | ??????????????????????##?????????????????????? | | ?????????????????????????????????????????????? | | ?????????????????????????????????????????????? | | ?????????????????????????????????????????????? | | ?????????????????????????????????????????????? | | ?????????????????????????????????????????????? | | ?????????????????????????????????????????????? | | ?????????????????????????????????????????????? | | ?????????????????????????????????????????????? | | ?????????????????????????????????????????????? | | ?????????????????????????????????????????????? | +----------------------------------------------------+ Best States ------------- Heat Dissipation 28 Energy Generation 14 Energy Capacity 480 Matter Stores 300 Matter Capacity 300 Sight Range 16 Terrain Scan Density 10 Evasion (%) 55 Item Schematics ----------------- None Robot Schematics ------------------ None Fabricated ------------ Nothing Alien Tech Used ----------------- None Achievements -------------- None Challenges ------------ None Game ------ Seed StealthPrecisionAxe Manual? 0 Play Time 00:12:31 Cumulative 6.0 hours Start 2024.04.03 @ 09:21:17 End 2024.04.03 @ 09:33:24 Sessions 1 Manual Loads 0 Difficulty Rogue Special Mode None Game No. 8 Rogue 8 Adventurer 0 Explorer 0 Win Type - Total 0 Types 0/0/0/0/0/0/0/0/0 Lore% 3 Gallery% 12 Achievement% 10 Wizard Run 0 Options --------- Layout 1 ASCII 0 Keyboard 0 Movement Mouse Keybinds 0 Fullscreen 1 Font 24/Smallcaps Map View 50x35 Zoom Use 0% Tactical HUD 0 Map Filters NONE Filters NONE Steam 1 RUN: 0a1afd2e-6ccd-4b2f-9195-aa838db06e12